bitfinex/quotes_SOLUSD_20250619
["timestamp","ask_amount","ask_price","bid_price","bid_amount"]
[1750305753661,34.06655781,146.6,146.59,27.64]
[1750305754755,34.06655781,146.6,146.59,34.46174773]
[1750305755760,34.06655781,146.6,146.59,6.82174773]
[1750305755962,34.06655781,146.6,146.59,34.46174773]
[1750305756643,34.06655781,146.6,146.59,27.64]
[1750305757656,34.06655781,146.6,146.59,34.46174773]
[1750305758873,5.16408941,146.6,146.59,34.46174773]
[1750305760687,5.16408941,146.61,146.59,34.46174773]
[1750305760973,5.16408941,146.65,146.6,23.81373827]
[1750305761186,5.16408941,146.64,146.61,27.64]
[1750305762183,5.16408941,146.64,146.62,6.82035193]
[1750305762394,5.16408941,146.63,146.62,6.82035193]
[1750305762554,5.16408941,146.63,146.62,34.46035193]
[1750305762754,5.16408941,146.63,146.62,27.64]
[1750305763183,31.16408941,146.63,146.57,22.89658519]
[1750305763490,5.16408941,146.6,146.58,27.64]
[1750305764187,5.16408941,146.6,146.58,34.46221312]
[1750305765284,5.16408941,146.6,146.58,6.82221312]
[1750305765463,5.16408941,146.6,146.59,27.64]
[1750305765663,5.16408941,146.6,146.58,6.82221312]
[1750305765893,5.16408941,146.6,146.59,27.64]
[1750305766188,5.16408941,146.6,146.59,34.46174773]
[1750305766767,5.16408941,146.6,146.58,6.82200757]
[1750305766977,8.06975498,146.59,146.58,6.82200757]
[1750305767199,8.06975498,146.59,146.58,34.46200757]
[1750305768979,26.0,146.61,146.58,34.46200757]
[1750305769288,8.06975498,146.59,146.58,34.46200757]
[1750305769892,8.06975498,146.6,146.58,34.46200757]
[1750305771899,8.06975498,146.6,146.58,6.82200757]
[1750305772080,8.06975498,146.6,146.59,6.82174773]
[1750305774203,8.06975498,146.6,146.58,34.46210224]
[1750305774406,8.06975498,146.59,146.58,34.46210224]
[1750305776518,8.06975498,146.59,146.58,27.64]
[1750305778491,8.06975498,146.59,146.57,40.30251046]
[1750305778688,8.06975498,146.58,146.55,6.82324349]
[1750305778894,26.0,146.57,146.55,6.82324349]
[1750305779120,26.0,146.57,146.55,34.46324349]
[1750305779326,34.06975498,146.57,146.55,34.46324349]
[1750305780818,8.06975498,146.56,146.55,34.46324349]
[1750305784929,8.06975498,146.56,146.55,6.82324349]
[1750305785222,8.06975498,146.56,146.55,34.46324349]
[1750305788212,26.0,146.58,146.55,34.46324349]
[1750305788635,8.06975498,146.57,146.55,34.46324349]
[1750305788929,5.16593789,146.57,146.55,34.46324349]
[1750305789825,5.10387959,146.61,146.56,18.64964886]
[1750305790032,5.16593789,146.6,146.57,27.64]
[1750305791233,5.16593789,146.6,146.58,6.82221312]
[1750305791532,5.16593789,146.6,146.59,27.64]
[1750305791533,26.0,146.6,146.59,27.64]
[1750305791733,31.16593789,146.6,146.59,27.64]
[1750305792935,34.0683015,146.6,146.59,27.64]
[1750305793109,34.0683015,146.6,146.59,34.46174773]
[1750305798736,34.0683015,146.6,146.59,27.64]
[1750305798955,34.0683015,146.6,146.58,27.64]
[1750305799117,8.0683015,146.59,146.58,27.64]
[1750305799318,8.0683015,146.59,146.56,5.84]
[1750305799529,8.0683015,146.57,146.56,5.84]
[1750305799734,8.0683015,146.57,146.56,33.48]
[1750305800740,8.0683015,146.57,146.56,40.3031441]
[1750305802137,8.0683015,146.57,146.56,34.4631441]
[1750305802324,8.0683015,146.57,146.54,6.82407533]
[1750305802641,8.0683015,146.56,146.55,27.64]
[1750305804032,8.0683015,146.56,146.54,6.82407533]
[1750305804334,8.0683015,146.56,146.55,27.64]
[1750305804524,8.0683015,146.56,146.55,34.46360968]
[1750305807526,8.0683015,146.56,146.55,27.64]
[1750305807837,8.0683015,146.56,146.53,6.82433637]
[1750305808023,8.0683015,146.54,146.53,6.82433637]
[1750305808341,13.13792678,146.65,146.59,0.14216157]
[1750305808530,13.09788223,146.7,146.64,18.64964886]
[1750305808733,8.0683015,146.69,146.65,27.64]
[1750305809047,8.0683015,146.67,146.65,27.64]
[1750305809246,8.0683015,146.66,146.58,6.39028882]
[1750305809417,8.0683015,146.63,146.62,6.82035193]
[1750305809619,8.0683015,146.63,146.62,34.48035193]
[1750305810044,8.0683015,146.64,146.62,34.48035193]
[1750305813466,8.0683015,146.65,146.62,34.48035193]
[1750305816172,8.0683015,146.64,146.62,34.48035193]
[1750305818871,8.0683015,146.65,146.62,34.48035193]
[1750305819460,8.0683015,146.64,146.62,34.48035193]
[1750305821677,8.0683015,146.65,146.62,34.48035193]
[1750305823368,8.58477091,146.7,146.63,18.64964886]
[1750305823369,8.0683015,146.67,146.63,18.64964886]
[1750305823570,26.0,146.65,146.64,27.62]
[1750305823774,26.0,146.65,146.64,46.26964886]
[1750305824959,26.0,146.65,146.64,53.08907057]
[1750305829358,26.0,146.67,146.64,78.20592635]
[1750305829558,34.0683015,146.67,146.64,70.13762485]
[1750305829976,8.0683015,146.66,146.64,70.13762485]
[1750305830157,8.0683015,146.66,146.64,42.51762485]
[1750305830364,8.0683015,146.66,146.65,27.62]
[1750305831391,8.0683015,146.66,146.65,34.43895669]
[1750305836886,5.15998587,146.66,146.65,34.43895669]
[1750305840393,5.15998587,146.66,146.65,27.62]
[1750305840592,5.15998587,146.66,146.64,27.62]
[1750305840893,5.15998587,146.65,146.64,27.62]
[1750305843268,5.15998587,146.65,146.64,34.43942171]
[1750305845000,5.15998587,146.65,146.64,27.62]
[1750305846181,5.15998587,146.65,146.64,34.43942171]
[1750305846383,5.15998587,146.66,146.64,53.08907057]
[1750305850285,5.15998587,146.67,146.64,70.13762485]
[1750305851881,5.15998587,146.67,146.66,6.81849174]
[1750305852081,5.15998587,146.67,146.66,34.43849174]
[1750305853092,26.0,146.69,146.66,34.43849174]
[1750305853285,5.15998587,146.67,146.66,34.43849174]
[1750305855398,26.0,146.65,146.64,6.81942171]
[1750305855599,31.15998587,146.65,146.64,34.43942171]
[1750305855905,5.15998587,146.66,146.64,34.43942171]
[1750305857417,5.15998587,146.65,146.64,34.43942171]
[1750305860031,26.0,146.67,146.64,34.43942171]
[1750305860190,5.15998587,146.65,146.64,34.43942171]
[1750305860702,5.15998587,146.65,146.64,6.81942171]
[1750305860905,5.15998587,146.65,146.64,34.43942171]
[1750305865155,5.15998587,146.65,146.64,6.81942171]
[1750305865337,5.15998587,146.65,146.64,34.43942171]
[1750305870843,5.15998587,146.65,146.64,27.62]
[1750305874152,26.0,146.67,146.64,34.43920804]
[1750305874352,5.15998587,146.65,146.64,34.43920804]
[1750305874554,5.15998587,146.65,146.64,34.43942171]
[1750305875953,5.15998587,146.65,146.62,6.82035193]
[1750305876147,5.15998587,146.63,146.62,6.82035193]
[1750305876467,5.15998587,146.63,146.62,34.44035193]
[1750305878448,26.0,146.67,146.62,34.44035193]
[1750305878651,5.15998587,146.63,146.62,34.44035193]
[1750305880061,5.15998587,146.63,146.62,6.82035193]
[1750305880250,5.15998587,146.63,146.62,34.44035193]
[1750305882862,5.15998587,146.63,146.61,5.84]
[1750305883064,31.15998587,146.62,146.61,5.84]
[1750305883267,31.15998587,146.62,146.57,18.64964886]
[1750305883472,5.15998587,146.58,146.56,12.6431441]
[1750305883642,5.15998587,146.57,146.56,12.6431441]
[1750305883971,5.15998587,146.57,146.56,5.82]
[1750305884265,5.15998587,146.57,146.56,33.44]
[1750305884471,5.15998587,146.57,146.56,5.82]
[1750305884667,26.0,146.55,146.53,130.84911235]
[1750305884867,34.07634623,146.54,146.53,35.8247276]
[1750305889663,8.07634623,146.54,146.53,35.8247276]
[1750305889871,8.07634623,146.54,146.53,42.64926864]
[1750305899977,8.07634623,146.54,146.53,35.8247276]
[1750305900161,22.97676779,146.54,146.53,35.8247276]
[1750305900367,26.0,146.51,146.47,6.82715409]
[1750305900552,8.07634623,146.48,146.47,6.82715409]
[1750305900754,8.07634623,146.48,146.47,34.48715409]
[1750305902979,8.07634623,146.48,146.47,34.46715409]
[1750305903176,8.07634623,146.48,146.46,12.66765569]
[1750305903492,8.07634623,146.47,146.42,106.78836106]
[1750305903662,8.07634623,146.44,146.43,6.82920166]
[1750305903855,8.07634623,146.44,146.43,34.48920166]
[1750305905273,8.07634623,146.44,146.43,6.82920166]
[1750305905462,8.07634623,146.44,146.43,34.48920166]
[1750305905785,8.07634623,146.44,146.43,6.82920166]
[1750305905994,8.07634623,146.44,146.43,34.48920166]
[1750305906279,8.07634623,146.44,146.43,6.82920166]
[1750305906488,8.07634623,146.44,146.43,34.48920166]
[1750305906861,8.07634623,146.44,146.42,12.66954749]
[1750305907072,8.07634623,146.43,146.42,12.66954749]
[1750305907394,8.07634623,146.43,146.42,40.32954749]
[1750305907681,8.07634623,146.43,146.42,5.84]
[1750305907893,8.07634623,146.43,146.42,33.5]
[1750305908864,34.07634623,146.43,146.42,5.84]
[1750305909064,34.07634623,146.43,146.42,33.5]
[1750305909577,34.07634623,146.43,146.42,40.32966807]
[1750305910770,26.0,146.41,146.4,18.68227448]
[1750305911105,34.07634623,146.41,146.39,27.68]
[1750305911401,8.07634623,146.4,146.39,27.68]
[1750305912174,8.07634623,146.4,146.37,6.83200109]
[1750305912398,26.0,146.41,146.38,27.7]
[1750305912696,8.07634623,146.39,146.38,27.7]
[1750305912883,8.07634623,146.39,146.38,34.53153436]
[1750305913673,8.07634623,146.39,146.38,27.7]
[1750305914499,8.07634623,146.39,146.37,6.83183813]
[1750305914500,22.98379464,146.39,146.31,6.83480281]
[1750305914677,8.07634623,146.33,146.32,27.7]
[1750305914879,8.07634623,146.33,146.32,34.5343357]
[1750305915187,8.07634623,146.33,146.32,6.8343357]
[1750305915372,8.07634623,146.33,146.32,34.5343357]
[1750305917793,26.0,146.38,146.32,51.62017495]
[1750305917982,8.07634623,146.34,146.32,51.62017495]
[1750305920708,8.07634623,146.33,146.32,51.62017495]
[1750305921086,8.07634623,146.37,146.33,18.64964886]
[1750305921295,8.07634623,146.35,146.34,27.7]
[1750305921490,8.07634623,146.35,146.34,6.83340166]
[1750305921691,8.07634623,146.35,146.34,34.53340166]
[1750305922375,8.07634623,146.35,146.34,6.83340166]
[1750305922579,8.07634623,146.35,146.34,34.59340166]
[1750305925102,8.07634623,146.35,146.34,34.57340166]
[1750305932603,8.07634623,146.35,146.34,6.83340166]
[1750305932901,8.07634623,146.35,146.34,34.57340166]
[1750305935528,26.0,146.32,146.29,6.83573723]
[1750305935731,8.07634623,146.3,146.29,6.83573723]
[1750305935914,26.0,146.31,146.29,6.83573723]
[1750305936118,34.07634623,146.31,146.29,6.83573723]
[1750305936319,8.07634623,146.3,146.29,6.83573723]
[1750305936827,26.0,146.27,146.26,14.71227174]
[1750305937030,34.07634623,146.27,146.25,8.33333333]
[1750305937224,8.07634623,146.26,146.25,8.33333333]
[1750305937421,26.0,146.27,146.25,15.17084118]
[1750305937631,8.07634623,146.26,146.25,15.17084118]
[1750305938538,26.0,146.29,146.26,18.64964886]
[1750305938738,26.0,146.28,146.27,34.5966719]
[1750305939230,8.07634623,146.29,146.27,34.5966719]
[1750305939818,26.0,146.31,146.27,34.5966719]
[1750305940034,26.0,146.28,146.27,34.5966719]
[1750305941641,1.5815,146.32,146.27,59.7646979]
[1750305941819,8.07634623,146.31,146.27,59.7646979]
[1750305942019,26.0,146.28,146.27,34.5966719]
[1750305944445,1.5505,146.35,146.28,18.64964886]
[1750305944741,12.46843566,146.39,146.31,26.72599509]
[1750305944933,8.07634623,146.35,146.32,27.82]
[1750305945130,26.0,146.33,146.32,27.82]
[1750305945940,26.0,146.33,146.32,34.6543357]
[1750305946543,26.0,146.34,146.32,42.73068193]
[1750305946736,34.07634623,146.36,146.32,42.73068193]
[1750305947350,26.0,146.36,146.32,42.73068193]
[1750305947541,34.07634623,146.36,146.32,42.73068193]
[1750305948744,26.0,146.36,146.32,42.73068193]
[1750305949051,34.07634623,146.36,146.32,42.73068193]
[1750305949430,26.0,146.33,146.32,34.6543357]
[1750305951327,34.07634623,146.36,146.32,42.73068193]
[1750305952448,26.0,146.36,146.32,42.73068193]
[1750305952644,34.07634623,146.36,146.32,42.73068193]
[1750305953249,26.0,146.33,146.32,34.6543357]
[1750305961765,7.7774,146.39,146.32,53.30398456]
[1750305961956,8.07634623,146.38,146.34,8.07634623]
[1750305962138,8.07634623,146.38,146.35,27.8]
[1750305962944,8.07634623,146.38,146.36,6.83246788]
[1750305966375,26.0,146.39,146.36,6.83246788]
[1750305966564,8.07634623,146.39,146.37,27.8]
[1750305966758,8.07634623,146.38,146.37,27.8]
[1750305966961,8.07634623,146.38,146.36,34.63246788]
[1750305967270,8.07634623,146.37,146.36,34.63246788]
[1750305969773,26.0,146.35,146.33,88.2]
[1750305970074,8.07634623,146.34,146.31,6.83480281]
[1750305970271,8.07634623,146.32,146.31,34.65480281]
[1750305970975,8.07634623,146.32,146.31,6.83480281]
[1750305971164,8.07634623,146.33,146.31,34.65480281]
[1750305971673,8.07634623,146.33,146.32,27.82]
[1750305972055,8.07634623,146.33,146.31,6.83480281]
[1750305972056,8.07634623,146.33,146.31,34.65480281]
[1750305975100,8.07634623,146.32,146.31,34.65480281]
[1750305976092,8.07634623,146.32,146.31,6.83480281]
[1750305976271,8.07634623,146.32,146.31,34.65480281]
[1750305976779,8.07634623,146.32,146.31,6.83480281]
[1750305976975,8.07634623,146.32,146.3,12.7551475]
[1750305977161,32.83306641,146.35,146.3,12.7551475]
[1750305977162,8.07634623,146.31,146.3,40.5551475]
[1750305977365,8.07634623,146.31,146.3,12.7551475]
[1750305978357,8.07634623,146.31,146.3,5.92]
[1750305980993,8.07634623,146.31,146.29,6.83553839]
[1750305980994,26.0,146.29,146.26,25.4867882]
[1750305981156,8.07634623,146.28,146.27,27.8]
[1750305981355,8.07634623,146.28,146.26,6.83713934]
[1750305981560,8.07634623,146.27,146.26,6.83713934]
[1750305983260,8.07634623,146.27,146.25,59.20708601]
[1750305984191,8.07634623,146.27,146.25,40.55743715]
[1750305984485,8.07634623,146.26,146.25,40.55743715]
[1750305984864,8.07634623,146.27,146.25,40.55743715]
[1750305986067,8.07634623,146.27,146.25,12.75743715]
[1750305986286,8.07634623,146.27,146.25,40.55743715]
[1750305999516,26.0,146.28,146.25,40.55743715]
[1750305999681,34.07634623,146.3,146.26,27.76]
[1750305999877,8.07634623,146.27,146.26,27.76]
[1750306000287,26.0,146.3,146.26,27.76]
[1750306000488,8.07634623,146.28,146.26,27.76]
[1750306001607,8.07634623,146.28,146.27,6.8366719]
[1750306002589,8.07634623,146.29,146.27,6.8366719]
[1750306002792,15.68294623,146.37,146.28,35.83634623]
[1750306003014,15.68294623,146.37,146.28,124.03634623]
[1750306003207,8.07634623,146.32,146.28,124.03634623]
[1750306003586,8.07634623,146.32,146.28,115.96]
[1750306003817,8.07634623,146.32,146.29,6.83573723]
[1750306004015,8.07634623,146.32,146.3,27.78]
[1750306005898,8.07634623,146.32,146.31,6.83480281]
[1750306008084,26.0,146.29,146.28,6.83600134]
[1750306008290,34.07634623,146.29,146.28,6.83600134]
[1750306009514,34.07634623,146.29,146.27,6.8366719]
[1750306009714,8.07634623,146.28,146.27,6.8366719]
[1750306017324,26.0,146.29,146.27,6.8366719]
[1750306017325,34.07634623,146.29,146.27,6.8366719]
[1750306018909,8.07634623,146.28,146.27,6.8366719]
[1750306021411,26.0,146.28,146.26,6.83713934]
[1750306021618,8.07634623,146.27,146.26,6.83713934]
[1750306023409,8.07634623,146.28,146.26,6.83713934]
[1750306023608,34.07634623,146.28,146.26,6.83713934]
[1750306024041,8.07634623,146.27,146.25,6.83744192]
[1750306024216,8.07634623,146.26,146.23,34.57854202]
[1750306024423,8.07634623,146.25,146.23,34.57854202]
[1750306024650,8.07634623,146.25,146.23,6.83854202]
[1750306024954,26.0,146.25,146.23,6.83854202]
[1750306025161,34.07634623,146.25,146.23,6.83854202]
[1750306026227,26.0,146.25,146.23,6.83854202]
[1750306028118,34.07634623,146.25,146.23,6.83854202]
[1750306031748,8.07634623,146.24,146.23,6.83854202]
[1750306033526,8.07634623,146.24,146.22,21.6452058]
[1750306033847,8.07634623,146.23,146.22,28.48420587]
[1750306034450,8.07634623,146.23,146.22,15.7652058]
[1750306034626,26.0,146.21,146.19,6.84026641]
[1750306034826,8.07634623,146.2,146.19,34.58026641]
[1750306035333,34.07634623,146.21,146.19,34.58026641]
[1750306036654,34.07634623,146.21,146.19,6.84026641]
[1750306036828,34.07634623,146.21,146.19,34.58026641]
[1750306037234,26.0,146.22,146.19,51.68129931]
[1750306037437,34.07634623,146.22,146.19,51.68129931]
[1750306039134,26.0,146.22,146.19,51.68129931]
[1750306039338,8.07634623,146.21,146.19,51.68129931]
[1750306039651,34.07634623,146.22,146.19,51.68129931]
[1750306039958,34.07634623,146.22,146.21,6.83947746]
[1750306040142,26.0,146.22,146.21,6.83947746]
[1750306040352,34.07634623,146.22,146.21,6.83947746]
[1750306046963,31.19030791,146.22,146.21,6.83947746]
[1750306058692,26.0,146.22,146.21,6.83947746]
[1750306058998,6.5368,146.25,146.21,6.83947746]
[1750306058999,31.19030791,146.25,146.21,42.58781997]
[1750306059196,31.19030791,146.25,146.21,130.78781997]
[1750306059197,5.19030791,146.24,146.21,130.78781997]
[1750306059860,5.19030791,146.24,146.22,27.72]
[1750306060068,5.19030791,146.24,146.23,6.83854202]
[1750306066596,5.19030791,146.24,146.22,34.55883414]
[1750306066811,5.19030791,146.23,146.22,6.83883414]
[1750306067974,5.19030791,146.23,146.21,95.03931482]
[1750306068308,5.19030791,146.22,146.21,95.03931482]
[1750306068486,5.19030791,146.22,146.21,6.83931482]
[1750306069980,5.19030791,146.22,146.2,6.83994528]
[1750306070187,5.19030791,146.21,146.2,34.55994528]
[1750306071076,5.11875293,146.25,146.21,18.64964886]
[1750306071313,5.11875293,146.25,146.24,18.64964886]
[1750306071506,5.11875293,146.25,146.24,46.36964886]
[1750306072202,5.19030791,146.25,146.24,27.72]
[1750306073413,5.19030791,146.25,146.24,34.55807439]
[1750306073992,5.19030791,146.26,146.24,34.55807439]
[1750306077507,5.19030791,146.25,146.24,34.55807439]
[1750306078889,5.19030791,146.25,146.24,6.83807439]
[1750306081619,9.98398307,146.25,146.23,34.55848126]
[1750306081794,31.19030791,146.24,146.23,34.55848126]
[1750306082193,31.19030791,146.24,146.23,6.83848126]
[1750306082817,26.0,146.27,146.23,6.83848126]
[1750306083020,26.0,146.24,146.23,6.83848126]
[1750306083223,26.0,146.24,146.23,34.55848126]
[1750306085113,26.0,146.24,146.22,17.09687342]
[1750306085309,26.0,146.24,146.23,27.72]
[1750306087316,26.0,146.24,146.23,34.55854202]
[1750306089726,26.0,146.27,146.23,34.55854202]
[1750306089926,5.19030791,146.25,146.23,34.55854202]
[1750306091621,5.19030791,146.24,146.23,34.55854202]
[1750306093508,4.80542195,146.26,146.23,34.55854202]
[1750306093708,5.19030791,146.24,146.23,34.55854202]
[1750306096025,26.0,146.27,146.23,34.55854202]
[1750306096232,5.19030791,146.24,146.23,34.55854202]
[1750306098841,5.19030791,146.25,146.23,34.55854202]
[1750306099023,31.19030791,146.25,146.23,34.55854202]
[1750306099740,5.19030791,146.26,146.24,18.64964886]
[1750306099934,5.19030791,146.26,146.25,27.72]
[1750306100411,31.19030791,146.26,146.25,27.72]
[1750306101308,31.19030791,146.26,146.25,34.55760683]
[1750306112651,26.0,146.26,146.25,34.55760683]
[1750306112842,31.19030791,146.26,146.25,34.55760683]
[1750306117550,26.0,146.26,146.25,34.55760683]
[1750306117747,31.19030791,146.26,146.25,34.55760683]
[1750306122973,26.0,146.26,146.25,34.55760683]
[1750306123174,31.19030791,146.26,146.25,34.55760683]
[1750306130654,26.0,146.24,146.23,122.73827562]
[1750306130867,35.99792326,146.24,146.23,115.9]
[1750306131186,35.99895692,146.24,146.23,115.9]
[1750306131556,35.99895692,146.24,146.23,88.2]
[1750306131758,61.88528899,146.24,146.23,88.2]
[1750306132365,56.76018856,146.24,146.22,27.7]
[1750306132572,56.76018856,146.24,146.2,6.83960865]
[1750306132573,30.76018856,146.23,146.21,27.7]
[1750306132756,5.19030791,146.22,146.21,27.7]
[1750306134786,5.19030791,146.22,146.19,6.84041316]
[1750306134972,5.19030791,146.2,146.19,25.49006202]
[1750306135287,5.19030791,146.2,146.19,141.39006202]
[1750306135659,5.19030791,146.2,146.19,113.69006202]
[1750306135862,5.19030791,146.2,146.18,150.556586]
[1750306136078,5.19030791,146.19,146.18,157.3974671]
[1750306136383,5.19030791,146.19,146.18,150.556586]
[1750306136690,5.19030791,146.19,146.18,178.256586]
[1750306136861,26.0,146.21,146.18,185.0974671]
[1750306137192,5.11954657,146.22,146.19,18.64964886]
[1750306137193,31.19030791,146.22,146.19,18.64964886]
[1750306137386,31.19030791,146.22,146.2,27.7]
[1750306137564,5.19030791,146.21,146.2,27.7]
[1750306137887,5.19030791,146.21,146.2,34.53994528]
[1750306138565,26.0,146.23,146.2,34.53994528]
[1750306138964,5.19030791,146.21,146.2,34.53994528]
[1750306140594,27.6347,146.26,146.21,18.64964886]
[1750306140796,5.19030791,146.24,146.22,27.72]
[1750306140975,5.19030791,146.23,146.22,27.72]
[1750306142195,5.19030791,146.23,146.22,34.55900971]
[1750306143274,27.6347,146.26,146.22,34.55900971]
[1750306143598,5.19030791,146.23,146.22,34.55900971]
[1750306147087,27.6347,146.26,146.23,18.64964886]
[1750306147088,5.19030791,146.25,146.23,18.64964886]
[1750306147402,31.19030791,146.26,146.24,27.7]
[1750306148189,31.19030791,146.26,146.25,6.83760683]
[1750306148806,26.0,146.26,146.25,6.83760683]
[1750306149010,31.19030791,146.26,146.25,6.83760683]
[1750306150499,26.0,146.26,146.25,6.83760683]
[1750306150715,5.19030791,146.27,146.25,6.83760683]
[1750306150929,5.19030791,146.27,146.26,27.7]
[1750306151430,5.19030791,146.27,146.26,46.34964886]
[1750306152101,5.19030791,146.27,146.26,53.1867882]
[1750306153010,1.56,146.3,146.26,70.27963655]
[1750306153011,27.56,146.3,146.26,70.27963655]
[1750306153225,5.19030791,146.27,146.26,70.27963655]
[1750306153603,26.0,146.29,146.26,70.27963655]
[1750306153799,5.19030791,146.27,146.26,70.27963655]
[1750306154418,5.19030791,146.28,146.26,70.27963655]
[1750306156726,5.19030791,146.28,146.26,158.47963655]
[1750306157619,5.19030791,146.29,146.27,18.64964886]
[1750306157820,5.19030791,146.29,146.27,46.34964886]
[1750306158715,5.19030791,146.29,146.28,6.83620453]
[1750306159520,26.0,146.31,146.28,6.83620453]
[1750306159740,5.19030791,146.29,146.28,6.83620453]
[1750306160745,26.0,146.31,146.28,6.83620453]
[1750306160916,5.19030791,146.29,146.28,6.83620453]
[1750306164549,5.19030791,146.29,146.27,88.2]
[1750306164714,31.19030791,146.28,146.27,88.2]
[1750306164914,31.19030791,146.28,146.24,34.53807439]
[1750306165216,5.19030791,146.25,146.24,34.53807439]
[1750306165623,26.0,146.27,146.24,34.53807439]
[1750306165825,31.19030791,146.27,146.24,34.53807439]
[1750306166218,26.0,146.27,146.24,51.63326038]
[1750306166417,31.19030791,146.27,146.24,51.63326038]
[1750306168549,31.19030791,146.27,146.24,139.83326038]
[1750306169844,26.0,146.27,146.24,139.83326038]
[1750306170153,5.19030791,146.27,146.25,18.64964886]
[1750306170318,5.19030791,146.27,146.26,27.7]
[1750306171924,5.19030791,146.27,146.26,34.53713934]
[1750306193360,5.19030791,146.27,146.26,53.1867882]
[1750306193557,5.19030791,146.29,146.26,51.62998769]
[1750306195242,20.76123164,146.3,146.26,34.53713934]
[1750306195445,5.19030791,146.27,146.26,53.1867882]
[1750306205475,5.19030791,146.27,146.26,34.53713934]
[1750306207176,10.03423799,146.27,146.26,34.53713934]
[1750306207763,10.03474383,146.27,146.26,34.53713934]
[1750306209359,10.03474383,146.27,146.26,6.83713934]
[1750306209658,10.03474383,146.27,146.25,53.18725569]
[1750306209868,5.19030791,146.26,146.25,53.18725569]
[1750306212271,5.19030791,146.26,146.25,25.48725569]
[1750306212485,5.19030791,146.26,146.25,53.18725569]
[1750306213953,5.19030791,146.26,146.25,6.83760683]
[1750306214153,5.19030791,146.26,146.23,33.54]
[1750306214377,5.19030791,146.24,146.23,5.84]
[1750306214961,5.19030791,146.24,146.23,33.54]
[1750306215660,5.19030791,146.24,146.23,40.37848656]
[1750306217460,5.19030791,146.25,146.23,40.37848656]
[1750306217660,5.19030791,146.27,146.24,18.64964886]
[1750306217974,5.19030791,146.27,146.25,27.7]
[1750306218166,31.19030791,146.27,146.25,27.7]
[1750306218760,31.19030791,146.27,146.26,6.83713934]
[1750306219083,36.02181503,146.27,146.26,6.83713934]
[1750306219499,31.19030791,146.27,146.26,6.83713934]
[1750306220767,1.5855,146.32,146.27,18.64964886]
[1750306220972,5.19030791,146.29,146.27,27.7]
[1750306221994,5.19030791,146.29,146.28,6.83620453]
[1750306222368,26.0,146.27,146.26,34.53713934]
[1750306222568,5.19030791,146.27,146.26,6.83713934]
[1750306224165,31.19030791,146.27,146.25,6.83750158]
[1750306224377,5.19030791,146.26,146.25,6.83750158]
[1750306225300,5.19030791,146.26,146.24,34.53807439]
[1750306225608,31.19030791,146.25,146.24,53.18772325]
[1750306226692,31.19030791,146.25,146.24,6.83807439]
[1750306230103,31.19030791,146.25,146.22,6.83900971]
[1750306230302,5.19030791,146.23,146.22,6.83900971]
[1750306230512,5.19030791,146.23,146.22,53.18865857]
[1750306234612,26.0,146.24,146.22,53.18865857]
[1750306234915,5.19030791,146.23,146.22,53.18865857]
[1750306237808,26.0,146.24,146.23,25.48819088]
[1750306238005,5.19030791,146.24,146.23,25.48819088]
[1750306238323,5.19030791,146.24,146.23,6.83854202]
[1750306243201,31.19030791,146.24,146.23,6.83854202]
[1750306246816,5.19030791,146.24,146.23,6.83854202]
[1750306249029,5.19030791,146.25,146.24,18.64964886]
[1750306249215,5.19030791,146.25,146.24,46.32964886]
[1750306250028,5.19030791,146.25,146.24,53.16772325]
[1750306255024,5.11904673,146.29,146.24,158.46290924]
[1750306255214,5.19030791,146.27,146.24,158.46290924]
[1750306256030,5.19030791,146.28,146.24,158.46290924]
[1750306256810,26.0,146.3,146.24,158.46290924]
[1750306257011,31.19030791,146.28,146.24,158.46290924]
[1750306258417,26.0,146.28,146.24,158.46290924]
[1750306258613,26.0,146.3,146.24,194.15568123]
[1750306259117,26.0,146.33,146.24,194.15568123]
[1750306259320,4.8161271,146.32,146.25,0.14216157]
[1750306259536,26.0,146.31,146.27,18.64964886]
[1750306259738,26.0,146.31,146.29,18.64964886]
[1750306260039,26.0,146.31,146.3,27.68]
[1750306260446,26.0,146.33,146.3,27.68]
[1750306260611,26.0,146.33,146.31,6.83480281]
[1750306264125,26.0,146.33,146.32,18.64964886]
[1750306264338,1.6111,146.36,146.32,18.64964886]
[1750306264639,4.79534502,146.37,146.32,46.32964886]
[1750306264831,26.0,146.35,146.32,46.32964886]
[1750306265546,26.0,146.35,146.33,6.83386865]
[1750306269630,26.0,146.35,146.32,46.32964886]
[1750306272654,26.0,146.35,146.33,6.83386865]
[1750306273039,26.0,146.35,146.32,46.32964886]
[1750306273527,26.0,146.35,146.32,53.16378403]
[1750306276239,26.0,146.34,146.32,46.32964886]